fUSD/lending_fUSD_20260319
["ID","MTS","AMOUNT","RATE_DAILY","PERIOD"]
[408604544,1773933138361,-10000.01,7.435e-05,2]
[408604545,1773933138493,-10000.01,7.435e-05,2]
[408604546,1773933138633,-892.85837871,7.435e-05,2]
[408604547,1773933138661,-8214.29324258,7.435e-05,2]
[408604548,1773933188134,500.0,7.37e-05,2]
[408604549,1773933188183,500.0,7.37e-05,2]
[408604550,1773933188232,500.0,7.37e-05,2]
[408604551,1773933188294,500.0,7.37e-05,2]
[408604552,1773933188341,500.0,7.37e-05,2]
[408604553,1773933188401,500.0,7.37e-05,2]
[408604554,1773933188462,500.0,7.37e-05,2]
[408604555,1773933188513,500.0,7.37e-05,2]
[408604556,1773933188577,254.4885953,7.37e-05,2]
[408604557,1773933201581,5745.5214047,7.271e-05,2]
[408604558,1773933201607,10000.01,7.271e-05,2]
[408604559,1773933201636,10000.01,7.271e-05,2]
[408604560,1773933201664,10000.01,7.271e-05,2]
[408604561,1773933201690,10000.01,7.271e-05,2]
[408604562,1773933201717,10000.01,7.271e-05,2]
[408604563,1773933201747,10000.01,7.271e-05,2]
[408604564,1773933305493,158.0,7.271e-05,3]
[408604565,1773933511550,-300.0,7.269e-05,2]
[408604566,1773933526553,-1200.0,7.27e-05,2]
[408604567,1773933526585,-150.0,7.27e-05,2]
[408604568,1773933526617,-1200.0,7.27e-05,2]
[408604569,1773933541231,300.0,7.27e-05,2]
[408604571,1773933601158,300.0,7.27e-05,2]
[408604572,1773933604602,384.87,4.126e-05,2]
[408604573,1773933604839,384.87,4.343e-05,2]
[408604574,1773933605052,384.87,4.56e-05,2]
[408604575,1773933605267,384.87,4.777e-05,2]
[408604576,1773933605483,384.87,4.994e-05,2]
[408604577,1773933605675,384.87,5.211e-05,2]
[408604578,1773933605910,384.87,5.428e-05,2]
[408604579,1773933606403,384.87,5.645e-05,2]
[408604580,1773933606539,384.87,5.863e-05,2]
[408604581,1773933606777,384.87,6.08e-05,2]
[408604582,1773933606984,384.87,6.297e-05,2]
[408604583,1773933607209,66.44,6.514e-05,2]
[408604584,1773933607233,318.43,6.514e-05,2]
[408604585,1773933607412,384.87,6.731e-05,2]
[408604586,1773933607824,384.87,6.948e-05,2]
[408604587,1773933608030,384.87,7.165e-05,2]
[408604588,1773933612013,158.0,7.271e-05,3]
[408604589,1773933662594,150.0,7.27e-05,2]
[408604590,1773933663140,300.0,7.27e-05,2]
[408604591,1773933688906,4350.820156,7.261e-05,2]
[408604592,1773933691297,3198.328,7.126e-05,2]
[408604593,1773933691445,154.559,7.126e-05,2]
[408604594,1773933721190,300.0,7.269e-05,2]
[408604595,1773933729833,73.262844,7.268e-05,2]
[408604596,1773933729861,77.737156,7.268e-05,2]
[408604597,1773933781162,300.0,7.269e-05,2]
[408604598,1773933819218,552.0,7.269e-05,2]
[408604599,1773933834700,5331.76701087,0.0001,3]
[408604600,1773933842761,150.0,7.269e-05,2]
[408604601,1773933894746,1000.0,0.00012575,10]
[408604604,1773933956096,500.0,7.17e-05,2]
[408604627,1773934020820,1000.0,7e-05,2]
[408604628,1773934021457,300.0,7.269e-05,2]
[408604629,1773934022888,2100.0,8.8e-05,3]
[408604630,1773934022925,300.0,7.269e-05,2]
[408604631,1773934023214,150.0,7.269e-05,2]
[408604632,1773934024990,3200.0,8.9e-05,3]
[408604633,1773934026454,500.0,7.253e-05,2]
[408604634,1773934027106,4300.0,9e-05,3]
[408604635,1773934029033,500.0,7.253e-05,2]
[408604636,1773934029760,500.0,7.253e-05,2]
[408604637,1773934035948,500.0,7.253e-05,2]
[408604638,1773934036146,500.0,7.253e-05,2]
[408604639,1773934036280,500.0,7.253e-05,2]
[408604640,1773934036409,500.0,7.253e-05,2]
[408604641,1773934036857,500.0,7.253e-05,2]
[408604642,1773934136147,80549.23298913,9.5e-05,3]
[408604643,1773934136173,100000.0,9.5e-05,3]
[408604644,1773934173596,180.29240252,7.263e-05,2]
[408604645,1773934201755,300.0,7.269e-05,2]
[408604646,1773934202847,150.0,7.269e-05,2]
[408604647,1773934205475,212.0,7.27e-05,2]
[408604658,1773934232319,-319.38024587,7.27e-05,2]
[408604660,1773934232330,-500.0,7.27e-05,2]
[408604662,1773934232339,-500.0,7.27e-05,2]
[408604663,1773934232349,-500.0,7.27e-05,2]
[408604664,1773934232359,-500.0,7.27e-05,2]
[408604665,1773934232368,-500.0,7.27e-05,2]
[408604666,1773934232380,-154.29214414,7.27e-05,2]
[408604667,1773934232390,-605.31283425,7.27e-05,2]
[408604668,1773934232402,-641.40699948,7.27e-05,2]
[408604669,1773934232411,-35.51304971,7.27e-05,2]
[408604670,1773934232423,-343.32323318,7.27e-05,2]
[408604671,1773934232434,-718.404805,7.27e-05,2]
[408604672,1773934232463,-149.47874584,7.27e-05,2]
[408604673,1773934232472,-305.07513324,7.27e-05,2]
[408604674,1773934232483,-941.64470049,7.27e-05,2]
[408604675,1773934232493,-1246.71983373,7.27e-05,2]
[408604676,1773934232502,-1246.71983373,7.27e-05,2]
[408604677,1773934232512,-1246.71983373,7.27e-05,2]
[408604678,1773934232521,-1246.71983373,7.27e-05,2]
[408604679,1773934232531,-1246.71983373,7.27e-05,2]
[408604680,1773934232541,-1246.71983373,7.27e-05,2]
[408604681,1773934232550,-1246.71983373,7.27e-05,2]
[408604682,1773934232559,-234.4160573,7.27e-05,2]
[408604684,1773934232569,-238.00376314,7.27e-05,2]
[408604686,1773934232578,-577.350645,7.27e-05,2]
[408604688,1773934232587,-264.44862571,7.27e-05,2]
[408604690,1773934232597,-250.0,7.27e-05,2]
[408604692,1773934232607,-53400.68769602,7.271e-05,2]
[408604694,1773934232619,-172719.95172004,7.271e-05,2]
[408604696,1773934232630,-252109.70292226,7.271e-05,2]
[408604698,1773934232641,-236389.76015698,7.271e-05,2]
[408604699,1773934232651,-250.0,7.275e-05,2]
[408604700,1773934232660,-1862.3592182,7.275e-05,2]
[408604703,1773934232670,-5580.0,7.299e-05,2]
[408604706,1773934232680,-13280.84,7.342e-05,2]
[408604708,1773934232688,-291.52,7.37e-05,2]
[408604709,1773934232698,-500.0,7.37e-05,2]
[408604712,1773934232708,-500.0,7.37e-05,2]
[408604713,1773934232727,-500.0,7.37e-05,2]
[408604714,1773934232740,-500.0,7.37e-05,2]
[408604715,1773934232750,-483.44806507,7.37e-05,2]
[408604716,1773934232760,-500.0,7.37e-05,2]
[408604717,1773934232771,-496.70990475,7.37e-05,2]
[408604718,1773934232783,-421.62817908,7.37e-05,2]
[408604719,1773934232792,-500.0,7.37e-05,2]
[408604720,1773934232802,-632.88129437,7.37e-05,2]
[408604721,1773934232814,-632.88129437,7.37e-05,2]
[408604722,1773934232824,-632.88129437,7.37e-05,2]
[408604723,1773934232834,-632.88129437,7.37e-05,2]
[408604724,1773934232843,-632.88129437,7.37e-05,2]
[408604725,1773934232853,-632.88129437,7.37e-05,2]
[408604726,1773934232862,-632.88129437,7.37e-05,2]
[408604727,1773934232872,-632.88129437,7.37e-05,2]
[408604728,1773934232882,-632.88129437,7.37e-05,2]
[408604729,1773934232891,-632.88129437,7.37e-05,2]
[408604730,1773934232901,-632.88129437,7.37e-05,2]
[408604731,1773934232910,-632.88129437,7.37e-05,2]
[408604732,1773934232920,-632.88129437,7.37e-05,2]
[408604733,1773934232929,-632.88129437,7.37e-05,2]
[408604734,1773934232939,-632.88129437,7.37e-05,2]
[408604735,1773934232949,-632.88129437,7.37e-05,2]
[408604736,1773934232959,-632.88129437,7.37e-05,2]
[408604737,1773934232968,-632.88129437,7.37e-05,2]
[408604738,1773934232978,-632.88129437,7.37e-05,2]
[408604739,1773934232987,-632.88129437,7.37e-05,2]
[408604740,1773934232996,-632.88129437,7.37e-05,2]
[408604741,1773934233006,-632.88129437,7.37e-05,2]
[408604742,1773934233016,-632.88129437,7.37e-05,2]
[408604743,1773934233026,-632.88129437,7.37e-05,2]
[408604744,1773934233035,-632.88129437,7.37e-05,2]
[408604745,1773934233045,-632.88129437,7.37e-05,2]
[408604746,1773934233054,-632.88129437,7.37e-05,2]
[408604747,1773934233064,-632.88129437,7.37e-05,2]
[408604748,1773934233074,-632.88129437,7.37e-05,2]
[408604749,1773934233083,-178.97673708,7.37e-05,2]
[408604750,1773934233096,-632.88129437,7.37e-05,2]
[408604751,1773934233106,-632.88129437,7.37e-05,2]
[408604752,1773934233116,-632.88129437,7.37e-05,2]
[408604753,1773934233126,-632.88129437,7.37e-05,2]
[408604754,1773934233136,-632.88129437,7.37e-05,2]
[408604755,1773934233146,-632.88129437,7.37e-05,2]
[408604756,1773934233156,-632.88129437,7.37e-05,2]
[408604757,1773934233166,-632.88129437,7.37e-05,2]
[408604758,1773934233177,-632.88129437,7.37e-05,2]
[408604759,1773934233186,-632.88129437,7.37e-05,2]
[408604760,1773934233196,-632.88129437,7.37e-05,2]
[408604761,1773934233206,-632.88129437,7.37e-05,2]
[408604762,1773934233216,-639.4744107,7.37e-05,2]
[408604763,1773934233226,-639.4744107,7.37e-05,2]
[408604764,1773934233235,-639.4744107,7.37e-05,2]
[408604765,1773934233245,-639.4744107,7.37e-05,2]
[408604766,1773934233254,-639.4744107,7.37e-05,2]
[408604767,1773934233264,-639.4744107,7.37e-05,2]
[408604768,1773934233274,-639.4744107,7.37e-05,2]
[408604769,1773934233287,-639.4744107,7.37e-05,2]
[408604770,1773934233297,-639.4744107,7.37e-05,2]
[408604771,1773934233306,-639.4744107,7.37e-05,2]
[408604772,1773934233315,-639.4744107,7.37e-05,2]
[408604773,1773934233325,-639.4744107,7.37e-05,2]
[408604774,1773934233335,-639.4744107,7.37e-05,2]
[408604775,1773934233344,-639.4744107,7.37e-05,2]
[408604776,1773934233354,-639.4744107,7.37e-05,2]
[408604777,1773934233364,-639.4744107,7.37e-05,2]
[408604778,1773934233374,-639.4744107,7.37e-05,2]
[408604779,1773934233385,-639.4744107,7.37e-05,2]
[408604780,1773934233396,-639.4744107,7.37e-05,2]
[408604781,1773934233405,-639.4744107,7.37e-05,2]
[408604782,1773934233415,-639.4744107,7.37e-05,2]
[408604783,1773934233424,-889.47441066,7.37e-05,2]
[408604784,1773934233434,-889.47441066,7.37e-05,2]
[408604785,1773934233444,-384.87,7.382e-05,2]
[408604786,1773934233454,-2914.16001294,7.435e-05,2]
[408604787,1773934233464,-1046.8329771,7.435e-05,2]
[408604788,1773934233478,-4418.2230548,7.593e-05,2]
[408604789,1773934233488,-384.87,7.6e-05,2]
[408604790,1773934233498,-999.99,7.6e-05,2]
[408604791,1773934233508,-291.52,7.644e-05,2]
[408604792,1773934233517,-1260.38,7.689e-05,2]
[408604793,1773934233527,-7162.23,7.689e-05,2]
[408604794,1773934233537,-150.99,7.689e-05,2]
[408604795,1773934233547,-9999.99,7.689e-05,2]
[408604796,1773934233557,-430.84,7.689e-05,2]
[408604797,1773934233566,-299.99,7.689e-05,2]
[408604798,1773934233576,-1449.96,7.689e-05,2]
[408604799,1773934233586,-9999.99,7.689e-05,2]
[408604800,1773934233595,-8545.81086345,7.689e-05,2]
[408604801,1773934233609,-1254.41808677,7.689e-05,2]
[408604802,1773934233621,-199.76104978,7.689e-05,2]
[408604803,1773934233630,-1441.3217545,7.689e-05,2]
[408604804,1773934233651,-740.01793856,7.689e-05,2]
[408604805,1773934233663,-753.33209608,7.689e-05,2]
[408604809,1773934238384,-370.68771833,7.689e-05,2]
[408604810,1773934238397,-4156.40049253,7.689e-05,2]
[408604811,1773934238406,-1000.0,7.801e-05,2]
[408604812,1773934238415,-384.87,7.817e-05,2]
[408604813,1773934238424,-291.53,7.918e-05,2]
[408604814,1773934238434,-778.0,7.979e-05,2]
[408604815,1773934238443,-1562.69035188,7.995e-05,2]
[408604816,1773934238453,-255.0,7.996e-05,2]
[408604817,1773934238463,-250.0,7.997e-05,2]
[408604818,1773934238472,-384.87,8.034e-05,2]
[408604819,1773934238482,-500.0,8.219e-05,2]
[408604820,1773934238492,-521.77305488,8.219e-05,2]
[408604821,1773934238502,-500.0,8.219e-05,2]
[408604822,1773934238511,-2000.0,8.239e-05,2]
[408604823,1773934238521,-384.87,8.251e-05,2]
[408604824,1773934238531,-4418.2230548,8.423e-05,2]
[408604825,1773934238540,-500.0,8.493e-05,2]
[408604826,1773934238550,-4426.0,8.521e-05,2]
[408604827,1773934238559,-3838.23,8.536e-05,2]
[408604828,1773934238569,-55610.79010208,8.585e-05,2]
[408604829,1773934238580,-1106.22269885,8.585e-05,2]
[408604831,1773934238605,-344.08577127,8.585e-05,2]
[408604832,1773934238637,-7459.18504,8.585e-05,2]
[408604841,1773934241204,-32700.5,8.585e-05,2]
[408604842,1773934241221,-9797.30463551,8.585e-05,2]
[408604843,1773934241233,-515.84075021,8.585e-05,2]
[408604844,1773934241244,-198505.74835715,8.585e-05,2]
[408604845,1773934241255,-442.7341553,8.585e-05,2]
[408604846,1773934241266,-747.03995,8.585e-05,2]
[408604853,1773934246311,-1386.74,8.585e-05,2]
[408604857,1773934246341,-53272.5316852,8.585e-05,2]
[408604859,1773934246354,-49414.566942,8.585e-05,2]
[408604863,1773934246845,-422.82696825,8.585e-05,2]
[408604864,1773934246862,-12891.95573552,8.585e-05,2]
[408604865,1773934246886,-339.59285193,8.585e-05,2]
[408604866,1773934246911,-299.51880524,8.585e-05,2]
[408604867,1773934246923,-260.98875,8.585e-05,2]
[408604948,1773934268308,500.0,8.761e-05,3]
[408604949,1773934294997,10000.01,7.171e-05,2]
[408604950,1773934295025,10000.01,7.171e-05,2]
[408604951,1773934295054,10000.01,7.171e-05,2]
[408604952,1773934295081,10000.01,7.171e-05,2]
[408604953,1773934295111,10000.01,7.171e-05,2]
[408604954,1773934295138,10000.01,7.171e-05,2]
[408604955,1773934295165,10000.01,7.171e-05,2]
[408604956,1773934295193,10000.01,7.171e-05,2]
[408604957,1773934295220,10000.01,7.171e-05,2]
[408604958,1773934301137,-8682.50290936,7.171e-05,2]
[408604959,1773934366736,-298.50412498,7.168e-05,2]
[408604960,1773934379242,-10000.01,7.171e-05,2]
[408604961,1773934379453,-10000.01,7.171e-05,2]
[408604962,1773934379564,-10000.01,7.171e-05,2]
[408604963,1773934388316,-10000.01,7.171e-05,2]
[408604964,1773934388421,-10000.01,7.171e-05,2]
[408604965,1773934388538,-10000.01,7.171e-05,2]
[408604966,1773934389189,500.0,7.17e-05,2]
[408604967,1773934455014,170.68,6.564e-05,2]
[408604968,1773934501107,300.0,7.17e-05,2]
[408604969,1773934501808,1200.0,7.17e-05,2]
[408604974,1773934562880,300.0,7.17e-05,2]
[408604975,1773934562947,150.0,7.17e-05,2]
[408604976,1773934565915,500.0,7.17e-05,2]
[408604977,1773934565972,500.0,7.17e-05,2]
[408604978,1773934566272,500.0,7.17e-05,2]
[408604979,1773934566335,282.32175004,7.17e-05,2]
[408604980,1773934566362,233.97365385,7.17e-05,2]
[408604981,1773934566409,500.0,7.17e-05,2]
[408604982,1773934581110,500.0,7.17e-05,2]
[408604983,1773934581161,449.48963711,7.17e-05,2]
[408604984,1773934593786,278.46207484,7.17e-05,2]
[408604985,1773934621280,300.0,7.17e-05,2]
[408604986,1773934731836,-10000.01,7.171e-05,2]
[408604987,1773934738162,-10000.01,7.171e-05,2]
[408604988,1773934741177,300.0,7.17e-05,2]
[408604989,1773934742795,300.0,7.17e-05,2]
[408604990,1773934742963,150.0,7.17e-05,2]
[408604991,1773934773151,241.11690104,7.163e-05,2]
[408604992,1773934801051,300.0,7.17e-05,2]
[408604993,1773934801625,1200.0,7.17e-05,2]
[408604994,1773934805409,211.0,7.171e-05,2]
[408604995,1773934832762,-10000.01,7.171e-05,2]
[408604996,1773934832999,-10000.01,7.171e-05,2]
[408604997,1773934841627,-10000.01,7.171e-05,2]
[408604998,1773934841760,-10000.01,7.171e-05,2]
[408604999,1773934847672,-10000.01,7.171e-05,2]
[408605000,1773934853775,-10000.01,7.171e-05,2]
[408605001,1773934891313,35.96773316,7.028e-05,2]
[408605002,1773934891336,4499.23326684,7.028e-05,2]
[408605003,1773934891446,210.478,7.028e-05,2]
[408605004,1773934914935,290.29873316,7.161e-05,2]
[408605005,1773934914962,5000.01,7.161e-05,2]
[408605006,1773934914998,5000.01,7.161e-05,2]
[408605007,1773934915029,5000.01,7.161e-05,2]
[408605008,1773934915059,5000.01,7.161e-05,2]
[408605009,1773934915087,5000.01,7.161e-05,2]
[408605010,1773934915113,5000.01,7.161e-05,2]
[408605011,1773934915139,5000.01,7.161e-05,2]
[408605012,1773934915165,5000.01,7.161e-05,2]
[408605013,1773934915191,5000.01,7.161e-05,2]
[408605014,1773934920742,-298.50412498,7.161e-05,2]
[408605015,1773934920879,-5000.01,7.161e-05,2]
[408605016,1773934920993,-5000.01,7.161e-05,2]
[408605017,1773934921106,-2451.46978802,7.161e-05,2]
[408605018,1773934921130,-97.07042396,7.161e-05,2]
[408605019,1773934921239,300.0,7.16e-05,2]
[408605020,1773934922569,150.0,7.17e-05,2]
[408605021,1773934923028,300.0,7.17e-05,2]
[408605022,1773934923740,200.0,7.1e-05,2]
[408605023,1773934934155,1000.0,7.17e-05,2]
[408605024,1773934981501,300.0,7.17e-05,2]
[408605027,1773935041184,300.0,7.17e-05,2]
[408605029,1773935101140,300.0,7.17e-05,2]
[408605030,1773935101182,1200.0,7.17e-05,2]
[408605031,1773935102575,150.0,7.17e-05,2]
[408605032,1773935103095,300.0,7.17e-05,2]
[408605033,1773935139030,150.0,0.000124,120]
[408605034,1773935139777,150.0,0.000161,120]
[408605035,1773935161265,300.0,7.17e-05,2]
[408605036,1773935221241,200.01,7.17e-05,2]
[408605037,1773935221265,99.99,7.17e-05,2]
[408605038,1773935282942,300.0,7.17e-05,2]
[408605039,1773935283131,150.0,7.17e-05,2]
[408605040,1773935285780,500.0,7.17e-05,2]
[408605041,1773935285841,261.40678272,7.17e-05,2]
[408605042,1773935285950,500.0,7.17e-05,2]
[408605043,1773935286251,500.0,7.17e-05,2]
[408605044,1773935299824,500.0,7.17e-05,2]
[408605045,1773935299870,500.0,7.17e-05,2]
[408605046,1773935299918,500.0,7.17e-05,2]
[408605047,1773935299964,500.0,7.17e-05,2]
[408605048,1773935300015,500.0,7.17e-05,2]
[408605049,1773935300071,188.61321728,7.17e-05,2]
[408605050,1773935300100,311.38678272,7.17e-05,2]
[408605051,1773935300138,500.0,7.17e-05,2]
[408605052,1773935300225,420.36869261,7.17e-05,2]
[408605053,1773935300333,500.0,7.17e-05,2]
[408605054,1773935300390,500.0,7.17e-05,2]
[408605055,1773935300441,500.0,7.17e-05,2]
[408605056,1773935300493,500.0,7.17e-05,2]
[408605057,1773935300549,500.0,7.17e-05,2]
[408605058,1773935300599,500.0,7.17e-05,2]
[408605059,1773935300647,500.0,7.17e-05,2]
[408605060,1773935300712,268.25452467,7.17e-05,2]
[408605061,1773935300742,231.74547533,7.17e-05,2]
[408605062,1773935300934,500.0,7.17e-05,2]
[408605063,1773935300997,500.0,7.17e-05,2]
[408605064,1773935301054,500.0,7.17e-05,2]
[408605065,1773935301104,500.0,7.17e-05,2]
[408605066,1773935301174,500.0,7.17e-05,2]
[408605067,1773935301218,500.0,7.17e-05,2]
[408605068,1773935301274,500.0,7.17e-05,2]
[408605069,1773935301333,500.0,7.17e-05,2]
[408605070,1773935301410,500.0,7.17e-05,2]
[408605071,1773935318351,268.26452467,7.17e-05,2]
[408605072,1773935318380,231.73547533,7.17e-05,2]
[408605073,1773935318418,500.0,7.17e-05,2]
[408605074,1773935318455,500.0,7.17e-05,2]
[408605075,1773935318509,500.0,7.17e-05,2]
[408605076,1773935318553,500.0,7.17e-05,2]
[408605077,1773935318605,500.0,7.17e-05,2]
[408605078,1773935318668,500.0,7.17e-05,2]
[408605079,1773935318714,420.36869261,7.17e-05,2]
[408605080,1773935318759,500.0,7.17e-05,2]
[408605081,1773935318813,500.0,7.17e-05,2]
[408605082,1773935318856,347.90583206,7.17e-05,2]
[408605083,1773935319140,152.09416794,7.17e-05,2]
[408605084,1773935319180,500.0,7.17e-05,2]
[408605085,1773935319225,500.0,7.17e-05,2]
[408605086,1773935319272,500.0,7.17e-05,2]
[408605087,1773935319310,500.0,7.17e-05,2]
[408605088,1773935319363,500.0,7.17e-05,2]
[408605089,1773935319408,500.0,7.17e-05,2]
[408605090,1773935319453,500.0,7.17e-05,2]
[408605091,1773935327089,165.84,0.000124,120]
[408605092,1773935366228,194.92345239,7.17e-05,2]
[408605093,1773935396641,1152.99237967,7.071e-05,2]
[408605094,1773935396666,5000.01,7.071e-05,2]
[408605095,1773935396693,5000.01,7.071e-05,2]
[408605096,1773935396720,5000.01,7.071e-05,2]
[408605097,1773935396746,5000.01,7.071e-05,2]
[408605098,1773935396770,5000.01,7.071e-05,2]
[408605099,1773935396798,10000.01,7.071e-05,2]
[408605100,1773935396824,10000.01,7.071e-05,2]
[408605101,1773935396854,10000.01,7.071e-05,2]
[408605102,1773935396882,10000.01,7.071e-05,2]
[408605103,1773935396912,10000.01,7.071e-05,2]
[408605104,1773935396939,10000.01,7.071e-05,2]
[408605105,1773935396965,10000.01,7.071e-05,2]
[408605106,1773935396991,10000.01,7.071e-05,2]
[408605107,1773935397030,10000.01,7.071e-05,2]
[408605108,1773935397059,10000.01,7.071e-05,2]
[408605109,1773935397087,5000.01,7.071e-05,2]
[408605110,1773935397113,5000.01,7.071e-05,2]
[408605111,1773935397140,5000.01,7.071e-05,2]
[408605112,1773935397166,5000.01,7.071e-05,2]
[408605113,1773935400292,-5000.01,7.071e-05,2]
[408605114,1773935400372,-5000.01,7.071e-05,2]
[408605115,1773935400475,-5000.01,7.071e-05,2]
[408605116,1773935400585,-5000.01,7.071e-05,2]
[408605117,1773935400693,-5000.01,7.071e-05,2]
[408605118,1773935400824,-5000.01,7.071e-05,2]
[408605119,1773935400931,-5000.01,7.071e-05,2]
[408605120,1773935401296,-273.0,7.07e-05,2]
[408605121,1773935401351,-300.0,7.07e-05,2]
[408605122,1773935401361,-300.0,7.07e-05,2]
[408605123,1773935401370,-4127.01,7.071e-05,2]
[408605124,1773935401385,-273.0,7.071e-05,2]
[408605125,1773935401409,-4454.01,7.071e-05,2]
[408605126,1773935401455,-5000.01,7.071e-05,2]
[408605127,1773935401479,-5000.01,7.071e-05,2]
[408605128,1773935401526,-5000.01,7.071e-05,2]
[408605129,1773935401671,-5000.01,7.071e-05,2]
[408605130,1773935401777,-5000.01,7.071e-05,2]
[408605131,1773935406816,-210.0,7.071e-05,2]
[408605142,1773935431603,-344.1,7.071e-05,2]
[408605143,1773935431754,-437149.83762033,7.071e-05,2]
[408605144,1773935431764,-250.0,7.196e-05,2]
[408605145,1773935431773,-1500.0,7.615e-05,2]
[408605146,1773935431783,-3346.15,7.669e-05,2]
[408605147,1773935431794,-7412.35,7.709e-05,2]
[408605148,1773935431804,-500.0,7.831e-05,2]
[408605149,1773935431813,-500.0,7.887e-05,2]
[408605150,1773935431823,-293.0,7.887e-05,2]
[408605151,1773935431833,-255.0,7.887e-05,2]
[408605153,1773935431842,-250.0,7.888e-05,2]
[408605155,1773935431851,-250.0,7.888e-05,2]
[408605156,1773935431860,-8349.95,7.905e-05,2]
[408605157,1773935431870,-6681.21,7.97e-05,2]
[408605158,1773935431879,-500.0,8e-05,2]
[408605159,1773935431889,-4965.175586,8.178e-05,2]
[408605160,1773935431898,-43702.98,8.219e-05,2]
[408605162,1773935431908,-299.99,8.219e-05,2]
[408605163,1773935431917,-999.99,8.219e-05,2]
[408605164,1773935431926,-150.99,8.219e-05,2]
[408605165,1773935431935,-9999.99,8.219e-05,2]
[408605166,1773935431945,-500.0,8.219e-05,2]
[408605167,1773935431954,-274.32450984,8.219e-05,2]
[408605168,1773935431963,-500.0,8.219e-05,2]
[408605169,1773935431973,-193.06,8.219e-05,2]
[408605170,1773935431982,-412.71750154,8.415e-05,2]
[408605171,1773935431992,-500.0,8.415e-05,2]
[408605172,1773935432001,-250.0,8.415e-05,2]
[408605173,1773935432010,-8565.75555911,8.415e-05,2]
[408605174,1773935432022,-1280.88388878,8.415e-05,2]
[408605175,1773935432033,-500.0,8.415e-05,2]
[408605176,1773935432044,-500.0,8.415e-05,2]
[408605177,1773935432055,-399.2510256,8.415e-05,2]
[408605178,1773935432066,-500.0,8.415e-05,2]
[408605179,1773935432076,-500.0,8.415e-05,2]
[408605180,1773935432086,-500.0,8.415e-05,2]
[408605181,1773935432097,-439.14971362,8.415e-05,2]
[408605182,1773935432107,-500.0,8.415e-05,2]
[408605183,1773935432116,-208.60794478,8.415e-05,2]
[408605184,1773935432126,-500.0,8.415e-05,2]
[408605185,1773935432135,-500.0,8.415e-05,2]
[408605186,1773935432146,-500.0,8.415e-05,2]
[408605187,1773935432157,-500.0,8.415e-05,2]
[408605188,1773935432166,-500.0,8.415e-05,2]
[408605189,1773935432175,-272.53822437,8.415e-05,2]
[408605190,1773935432184,-500.0,8.415e-05,2]
[408605191,1773935432194,-500.0,8.415e-05,2]
[408605192,1773935432204,-500.0,8.415e-05,2]
[408605193,1773935432213,-500.0,8.415e-05,2]
[408605194,1773935432223,-500.0,8.415e-05,2]
[408605195,1773935432233,-250.0,8.415e-05,2]
[408605196,1773935432242,-250.0,8.415e-05,2]
[408605197,1773935432252,-500.0,8.415e-05,2]
[408605198,1773935432261,-250.0,8.415e-05,2]
[408605199,1773935432270,-500.0,8.415e-05,2]
[408605200,1773935432280,-250.0,8.415e-05,2]
[408605201,1773935432291,-500.0,8.415e-05,2]
[408605202,1773935432301,-282.59450799,8.415e-05,2]
[408605203,1773935432310,-500.0,8.415e-05,2]
[408605204,1773935432319,-203.45251981,8.415e-05,2]
[408605205,1773935432329,-151.0,8.415e-05,2]
[408605206,1773935432338,-151.0,8.415e-05,2]
[408605207,1773935432348,-151.0,8.415e-05,2]
[408605208,1773935432358,-151.0,8.415e-05,2]
[408605209,1773935432367,-151.0,8.415e-05,2]
[408605210,1773935432377,-151.0,8.415e-05,2]
[408605211,1773935432388,-151.0,8.415e-05,2]
[408605212,1773935432397,-151.0,8.415e-05,2]
[408605213,1773935432407,-225.91421318,8.415e-05,2]
[408605214,1773935432417,-669.13395939,8.415e-05,2]
[408605215,1773935432428,-500.0,8.415e-05,2]
[408605216,1773935432439,-500.0,8.433e-05,2]
[408605217,1773935432449,-500.0,8.433e-05,2]
[408605218,1773935432458,-1178.52515696,8.453e-05,2]
[408605219,1773935432470,-29850.79815607,8.453e-05,2]
[408605220,1773935432481,-11461.17825112,8.453e-05,2]